[Event "Live Chess"]
[Site "Chess.com"]
[Date "2024.06.02"]
[Round "-"]
[White "CarmelJane"]
[Black "WilliamofOrange16th"]
[Result "0-1"]
[WhiteElo "2058"]
[BlackElo "2004"]
[TimeControl "300"]
[EndTime "3:55:55 PDT"]
[Termination "WilliamofOrange16th won by resignation"]

1. Nf3 {[%clk 0:04:54.7]} 1... d6 {[%clk 0:04:56.6]} 2. g3 {[%clk 0:04:52.9]}
2... g6 {[%clk 0:04:53.4]} 3. e4 {[%clk 0:04:50.6]} 3... Bg7 {[%clk 0:04:53.3]}
4. Bg2 {[%clk 0:04:49.7]} 4... Nf6 {[%clk 0:04:49.3]} 5. O-O {[%clk 0:04:49]}
5... Nxe4 {[%clk 0:04:47.2]} 6. d3 {[%clk 0:04:46.4]} 6... Nf6 {[%clk
0:04:46.3]} 7. Bg5 {[%clk 0:04:44.5]} 7... O-O {[%clk 0:04:45.3]} 8. c3 {[%clk
0:04:43.9]} 8... Nbd7 {[%clk 0:04:38.1]} 9. Qd2 {[%clk 0:04:43.1]} 9... Re8
{[%clk 0:04:35.8]} 10. Bh6 {[%clk 0:04:41.8]} 10... Bh8 {[%clk 0:04:34.5]} 11.
h4 {[%clk 0:04:39]} 11... e6 {[%clk 0:04:14.7]} 12. Bg5 {[%clk 0:04:30.4]} 12...
c6 {[%clk 0:04:12.5]} 13. h5 {[%clk 0:04:04.7]} 13... Qc7 {[%clk 0:04:07.7]} 14.
hxg6 {[%clk 0:04:01.2]} 14... hxg6 {[%clk 0:04:04.7]} 15. Na3 {[%clk 0:03:55.7]}
15... e5 {[%clk 0:03:51.1]} 16. Nh4 {[%clk 0:03:40.2]} 16... d5 {[%clk
0:03:47.2]} 17. f4 {[%clk 0:03:33.6]} 17... Qb6+ {[%clk 0:03:34.7]} 18. Kh2
{[%clk 0:02:59.8]} 18... Ng4+ {[%clk 0:03:26.7]} 19. Kh1 {[%clk 0:02:52.7]}
19... f6 {[%clk 0:03:15.7]} 20. fxe5 {[%clk 0:02:40.7]} 20... fxg5 {[%clk
0:03:07.3]} 21. Qxg5 {[%clk 0:02:38.4]} 21... Nf8 {[%clk 0:02:33.5]} 22. Nxg6
{[%clk 0:02:28.8]} 22... Bg7 {[%clk 0:02:30.7]} 23. Nxf8 {[%clk 0:02:13.8]}
23... Rxf8 {[%clk 0:02:24.9]} 24. Rxf8+ {[%clk 0:02:10.1]} 24... Kxf8 {[%clk
0:02:24.8]} 25. d4 {[%clk 0:02:01.6]} 25... Qc7 {[%clk 0:02:02.9]} 26. Rf1+
{[%clk 0:01:54.2]} 26... Kg8 {[%clk 0:02:01.2]} 27. Nc2 {[%clk 0:01:35.7]} 27...
Be6 {[%clk 0:01:58.7]} 28. Ne3 {[%clk 0:01:31.1]} 28... Nxe3 {[%clk 0:01:55.3]}
29. Qxe3 {[%clk 0:01:31]} 29... Rf8 {[%clk 0:01:52.6]} 30. Rxf8+ {[%clk
0:01:16.8]} 30... Kxf8 {[%clk 0:01:52.5]} 31. Qg5 {[%clk 0:01:06.3]} 31... Qe7
{[%clk 0:01:51.5]} 32. Qf4+ {[%clk 0:01:01.7]} 32... Qf7 {[%clk 0:01:49.7]} 33.
Qg5 {[%clk 0:00:59.7]} 33... Ke8 {[%clk 0:01:43.6]} 34. Kg1 {[%clk 0:00:55.7]}
34... Bf8 {[%clk 0:01:37.6]} 35. Bf1 {[%clk 0:00:54.4]} 35... Be7 {[%clk
0:01:36.5]} 36. Qh4 {[%clk 0:00:52.2]} 0-1

[Event "Live Chess"]
[Site "Chess.com"]
[Date "2024.06.02"]
[Round "-"]
[White "asingardenof"]
[Black "KeithArkell"]
[Result "0-1"]
[WhiteElo "621"]
[BlackElo "2414"]
[TimeControl "300"]
[EndTime "3:56:08 PDT"]
[Termination "KeithArkell won by checkmate"]

1. d4 {[%clk 0:04:56.1]} 1... e6 {[%clk 0:04:58.9]} 2. c4 {[%clk 0:04:55]} 2...
Bb4+ {[%clk 0:04:57.9]} 3. Bd2 {[%clk 0:04:52.3]} 3... Bxd2+ {[%clk 0:04:57]} 4.
Nxd2 {[%clk 0:04:50.7]} 4... Nf6 {[%clk 0:04:56.9]} 5. Ngf3 {[%clk 0:04:49.2]}
5... d6 {[%clk 0:04:56.2]} 6. e3 {[%clk 0:04:47.2]} 6... Qe7 {[%clk 0:04:56.1]}
7. Bd3 {[%clk 0:04:45.9]} 7... e5 {[%clk 0:04:55.5]} 8. d5 {[%clk 0:04:42.8]}
8... e4 {[%clk 0:04:53.8]} 9. Bxe4 {[%clk 0:04:41.7]} 9... Nxe4 {[%clk
0:04:52.8]} 10. Nxe4 {[%clk 0:04:41.6]} 10... Qxe4 {[%clk 0:04:52]} 11. O-O
{[%clk 0:04:40.3]} 11... O-O {[%clk 0:04:50.2]} 12. Nd2 {[%clk 0:04:38.1]} 12...
Qd3 {[%clk 0:04:48.6]} 13. h3 {[%clk 0:04:28.3]} 13... Nd7 {[%clk 0:04:47.7]}
14. Qf3 {[%clk 0:04:22.1]} 14... Ne5 {[%clk 0:04:46.5]} 15. Qf4 {[%clk
0:04:18.7]} 15... Qxd2 {[%clk 0:04:44.9]} 16. Rab1 {[%clk 0:04:13.5]} 16... Bd7
{[%clk 0:04:40.6]} 17. Rfd1 {[%clk 0:04:09.8]} 17... Qc2 {[%clk 0:04:39.1]} 18.
e4 {[%clk 0:04:04.7]} 18... Ng6 {[%clk 0:04:37.9]} 19. Qf3 {[%clk 0:04:00.4]}
19... Rae8 {[%clk 0:04:36.6]} 20. Re1 {[%clk 0:03:31.5]} 20... Ne5 {[%clk
0:04:33.5]} 21. Qf4 {[%clk 0:03:26.5]} 21... Nd3 {[%clk 0:04:31.8]} 22. Qf3
{[%clk 0:03:21.3]} 22... Nxe1 {[%clk 0:04:30.3]} 23. Kh2 {[%clk 0:03:20.7]}
23... Nxf3+ {[%clk 0:04:28.9]} 24. gxf3 {[%clk 0:03:19.4]} 24... Qxb1 {[%clk
0:04:28]} 25. Kg3 {[%clk 0:03:17.5]} 25... Qg1+ {[%clk 0:04:26.7]} 26. Kh4
{[%clk 0:03:15.8]} 26... h6 {[%clk 0:04:24.9]} 27. f4 {[%clk 0:03:01.5]} 27...
Rxe4 {[%clk 0:04:23.2]} 28. f3 {[%clk 0:02:59.5]} 28... Qg5# {[%clk 0:04:22]}
0-1

[Event "Live Chess"]
[Site "Chess.com"]
[Date "2024.06.02"]
[Round "-"]
[White "RamsayFlayer"]
[Black "DfNn"]
[Result "1-0"]
[WhiteElo "1926"]
[BlackElo "1568"]
[TimeControl "300"]
[EndTime "3:56:19 PDT"]
[Termination "RamsayFlayer won by resignation"]

1. e4 {[%clk 0:04:56.9]} 1... e5 {[%clk 0:04:58.7]} 2. Nf3 {[%clk 0:04:55.3]}
2... Nc6 {[%clk 0:04:56.4]} 3. Bb5 {[%clk 0:04:54.8]} 3... Bc5 {[%clk
0:04:54.7]} 4. c3 {[%clk 0:04:52.7]} 4... Nge7 {[%clk 0:04:52.3]} 5. d4 {[%clk
0:04:49.4]} 5... exd4 {[%clk 0:04:50.4]} 6. cxd4 {[%clk 0:04:36.1]} 6... Bb4+
{[%clk 0:04:44.1]} 7. Bd2 {[%clk 0:04:35.7]} 7... Bxd2+ {[%clk 0:04:42.1]} 8.
Nbxd2 {[%clk 0:04:35.6]} 8... O-O {[%clk 0:04:40.1]} 9. O-O {[%clk 0:04:32.8]}
9... d5 {[%clk 0:04:37.6]} 10. exd5 {[%clk 0:04:25.5]} 10... Qxd5 {[%clk
0:04:33.9]} 11. Bc4 {[%clk 0:04:23.8]} 11... Qd8 {[%clk 0:04:30.5]} 12. Nb3
{[%clk 0:04:17.1]} 12... Bg4 {[%clk 0:04:28]} 13. Be2 {[%clk 0:04:10.2]} 13...
Bxf3 {[%clk 0:04:17.9]} 14. Bxf3 {[%clk 0:04:08.9]} 14... Nd5 {[%clk 0:04:10.7]}
15. Qc2 {[%clk 0:03:55.4]} 15... Qd6 {[%clk 0:04:03.7]} 16. Rad1 {[%clk
0:03:48.2]} 16... Ndb4 {[%clk 0:03:57.3]} 17. Qc4 {[%clk 0:03:40.6]} 17... Nxa2
{[%clk 0:03:52.3]} 18. Nc5 {[%clk 0:03:30.7]} 18... Nab4 {[%clk 0:03:40]} 19.
Nxb7 {[%clk 0:03:27.8]} 19... Qe6 {[%clk 0:03:28.1]} 20. Qxe6 {[%clk 0:03:05.4]}
20... fxe6 {[%clk 0:03:25.1]} 21. Nc5 {[%clk 0:03:05]} 21... Rae8 {[%clk
0:03:14.9]} 22. Rfe1 {[%clk 0:02:59.1]} 22... Nc2 {[%clk 0:03:06.9]} 23. Rxe6
{[%clk 0:02:53.2]} 23... N2xd4 {[%clk 0:03:04.8]} 24. Bxc6 {[%clk 0:02:18]}
24... Rxe6 {[%clk 0:02:52.7]} 25. Nxe6 {[%clk 0:02:14.5]} 25... Rf6 {[%clk
0:02:47.5]} 26. Nxd4 {[%clk 0:02:10.8]} 1-0

[Event "Live Chess"]
[Site "Chess.com"]
[Date "2024.06.02"]
[Round "-"]
[White "ACM42"]
[Black "nitrofish07"]
[Result "1-0"]
[WhiteElo "2175"]
[BlackElo "2071"]
[TimeControl "300"]
[EndTime "3:56:22 PDT"]
[Termination "ACM42 won by resignation"]

1. e4 {[%clk 0:04:55.8]} 1... c5 {[%clk 0:04:59]} 2. Nf3 {[%clk 0:04:53.5]} 2...
d6 {[%clk 0:04:58.6]} 3. d4 {[%clk 0:04:52.9]} 3... cxd4 {[%clk 0:04:58.5]} 4.
Nxd4 {[%clk 0:04:52.6]} 4... Nf6 {[%clk 0:04:58.4]} 5. Nc3 {[%clk 0:04:51.8]}
5... a6 {[%clk 0:04:58]} 6. Be2 {[%clk 0:04:50.3]} 6... e5 {[%clk 0:04:57.4]} 7.
Nb3 {[%clk 0:04:49.4]} 7... Be7 {[%clk 0:04:56.5]} 8. O-O {[%clk 0:04:48.5]}
8... Be6 {[%clk 0:04:56.2]} 9. f4 {[%clk 0:04:46]} 9... O-O {[%clk 0:04:51.3]}
10. f5 {[%clk 0:04:37.7]} 10... Bc8 {[%clk 0:04:49.9]} 11. g4 {[%clk 0:04:37]}
11... h6 {[%clk 0:04:46.7]} 12. Be3 {[%clk 0:04:27.2]} 12... b5 {[%clk
0:04:45.7]} 13. Bf3 {[%clk 0:04:21.2]} 13... Bb7 {[%clk 0:04:44.8]} 14. Qd2
{[%clk 0:04:12.4]} 14... Nbd7 {[%clk 0:04:35.8]} 15. h4 {[%clk 0:04:11.3]} 15...
b4 {[%clk 0:04:07.9]} 16. Nd5 {[%clk 0:04:06.8]} 16... Bxd5 {[%clk 0:04:03]} 17.
exd5 {[%clk 0:04:04.2]} 17... e4 {[%clk 0:04:02.9]} 18. Be2 {[%clk 0:03:58.9]}
18... Ne5 {[%clk 0:04:01.7]} 19. g5 {[%clk 0:03:51.8]} 19... hxg5 {[%clk
0:03:59.8]} 20. hxg5 {[%clk 0:03:50.6]} 20... Nfg4 {[%clk 0:03:59.7]} 21. g6
{[%clk 0:02:51.6]} 21... fxg6 {[%clk 0:03:57.1]} 22. fxg6 {[%clk 0:02:49.8]}
22... Nxe3 {[%clk 0:03:54]} 23. Qxe3 {[%clk 0:02:47.9]} 23... Nxg6 {[%clk
0:03:53.9]} 24. Qxe4 {[%clk 0:02:42.8]} 24... Ne5 {[%clk 0:03:52.3]} 25. Nd4
{[%clk 0:02:35.7]} 25... Qe8 {[%clk 0:03:37.4]} 26. Ne6 {[%clk 0:02:30.3]} 26...
Rxf1+ {[%clk 0:03:32.2]} 27. Rxf1 {[%clk 0:02:28.7]} 27... Qg6+ {[%clk
0:03:31.2]} 28. Qxg6 {[%clk 0:02:27.1]} 28... Nxg6 {[%clk 0:03:31.1]} 29. Bh5
{[%clk 0:02:12.9]} 29... Ne5 {[%clk 0:03:26.9]} 30. Rf4 {[%clk 0:02:11.8]} 30...
Rc8 {[%clk 0:03:22.4]} 31. Bd1 {[%clk 0:01:54.6]} 31... Bf6 {[%clk 0:03:18.9]}
32. Rxb4 {[%clk 0:01:50.6]} 32... Ng6 {[%clk 0:03:04.4]} 33. c3 {[%clk
0:01:47.3]} 33... Nf8 {[%clk 0:03:03.2]} 34. Bg4 {[%clk 0:01:44.4]} 34... Ra8
{[%clk 0:03:00.3]} 35. Nc7 {[%clk 0:01:40.5]} 35... Ra7 {[%clk 0:02:59.1]} 36.
Ne8 {[%clk 0:01:35.1]} 36... Kf7 {[%clk 0:02:58.1]} 37. Nxd6+ {[%clk 0:01:33.3]}
37... Kg6 {[%clk 0:02:56.8]} 38. Rb7 {[%clk 0:01:27.1]} 38... Ra8 {[%clk
0:02:53.7]} 39. Ne4 {[%clk 0:01:17.4]} 39... Rd8 {[%clk 0:02:50.5]} 40. Nxf6
{[%clk 0:01:13.8]} 40... Kxf6 {[%clk 0:02:50.4]} 41. c4 {[%clk 0:01:13.1]} 41...
Nh7 {[%clk 0:02:48.5]} 42. Rb6+ {[%clk 0:01:11.9]} 42... Ke5 {[%clk 0:02:46.5]}
43. Rxa6 {[%clk 0:01:11.1]} 43... Nf6 {[%clk 0:02:45.5]} 44. Be6 {[%clk
0:01:08.1]} 44... Kd4 {[%clk 0:02:44.6]} 45. Rc6 {[%clk 0:01:05.8]} 45... Ra8
{[%clk 0:02:42.4]} 46. a3 {[%clk 0:01:04.7]} 46... Rb8 {[%clk 0:02:38.4]} 47. b4
{[%clk 0:00:59.1]} 47... Ra8 {[%clk 0:02:37.8]} 48. d6 {[%clk 0:00:55.3]} 48...
Rxa3 {[%clk 0:02:33.8]} 49. d7 {[%clk 0:00:54.2]} 49... Nxd7 {[%clk 0:02:14.4]}
50. Bxd7 {[%clk 0:00:53.2]} 50... Rc3 {[%clk 0:02:13.4]} 51. b5 {[%clk
0:00:50.1]} 51... Ke3 {[%clk 0:02:09.9]} 52. Kg2 {[%clk 0:00:45.3]} 52... Rc2+
{[%clk 0:02:07]} 53. Kg3 {[%clk 0:00:44.2]} 53... Kd4 {[%clk 0:02:04.6]} 54. b6
{[%clk 0:00:42.9]} 54... Rb2 {[%clk 0:02:03.2]} 55. Bc8 {[%clk 0:00:40.8]} 55...
Ke5 {[%clk 0:02:00.7]} 56. b7 {[%clk 0:00:39.1]} 56... g5 {[%clk 0:01:59.4]} 57.
c5 {[%clk 0:00:37.7]} 57... Kd5 {[%clk 0:01:58.1]} 58. Rb6 {[%clk 0:00:36.1]}
1-0

[Event "Live Chess"]
[Site "Chess.com"]
[Date "2024.06.02"]
[Round "-"]
[White "Isambard_Thomas"]
[Black "JanMur7"]
[Result "1-0"]
[WhiteElo "2203"]
[BlackElo "2289"]
[TimeControl "300"]
[EndTime "3:56:24 PDT"]
[Termination "Isambard_Thomas won by resignation"]

1. d4 {[%clk 0:04:59.2]} 1... Nf6 {[%clk 0:04:58.7]} 2. Nf3 {[%clk 0:04:57.7]}
2... e6 {[%clk 0:04:57.5]} 3. Bg5 {[%clk 0:04:57.2]} 3... d5 {[%clk 0:04:55.3]}
4. e3 {[%clk 0:04:56.4]} 4... Be7 {[%clk 0:04:53.9]} 5. Bd3 {[%clk 0:04:55.5]}
5... h6 {[%clk 0:04:52.3]} 6. Bf4 {[%clk 0:04:54.4]} 6... Nbd7 {[%clk
0:04:50.6]} 7. Nbd2 {[%clk 0:04:53.5]} 7... c5 {[%clk 0:04:49.6]} 8. c3 {[%clk
0:04:52.7]} 8... O-O {[%clk 0:04:46.3]} 9. g4 {[%clk 0:04:51.5]} 9... b6 {[%clk
0:04:40.7]} 10. g5 {[%clk 0:04:49.5]} 10... hxg5 {[%clk 0:04:38.2]} 11. Nxg5
{[%clk 0:04:45.2]} 11... Ne4 {[%clk 0:04:31.5]} 12. Ndxe4 {[%clk 0:03:43.9]}
12... dxe4 {[%clk 0:04:25]} 13. Bxe4 {[%clk 0:03:40.2]} 13... Bxg5 {[%clk
0:04:23.6]} 14. Bxg5 {[%clk 0:03:35.2]} 14... Qxg5 {[%clk 0:04:21.3]} 15. h4
{[%clk 0:03:33.1]} 15... Qf6 {[%clk 0:04:12.2]} 16. Bxa8 {[%clk 0:03:32]} 16...
cxd4 {[%clk 0:04:10.6]} 17. Qxd4 {[%clk 0:03:21]} 17... Ne5 {[%clk 0:03:53.7]}
18. O-O-O {[%clk 0:03:05.9]} 18... Ba6 {[%clk 0:03:45.6]} 19. Be4 {[%clk
0:02:59.3]} 19... Rc8 {[%clk 0:03:24.9]} 20. f4 {[%clk 0:02:52.1]} 20... Ng4
{[%clk 0:03:08.3]} 21. Qxf6 {[%clk 0:02:46.5]} 21... Nxf6 {[%clk 0:03:08.2]} 22.
Bd3 {[%clk 0:02:43]} 22... Bb7 {[%clk 0:03:05.2]} 23. Rhg1 {[%clk 0:02:41.1]}
23... Nd5 {[%clk 0:03:03.5]} 24. Rde1 {[%clk 0:02:34.8]} 24... Nb4 {[%clk
0:02:54.2]} 25. Bb1 {[%clk 0:02:25.9]} 25... Bd5 {[%clk 0:02:52.1]} 26. a3
{[%clk 0:02:23.2]} 26... Na6 {[%clk 0:02:49.1]} 27. e4 {[%clk 0:02:18.9]} 27...
Bb3 {[%clk 0:02:43.1]} 28. Bc2 {[%clk 0:02:18]} 28... Nc5 {[%clk 0:02:36.9]} 29.
Bxb3 {[%clk 0:02:16]} 29... Nxb3+ {[%clk 0:02:36.8]} 30. Kc2 {[%clk 0:02:15.4]}
30... Nc5 {[%clk 0:02:36]} 31. f5 {[%clk 0:02:10]} 31... exf5 {[%clk 0:02:32.9]}
32. exf5 {[%clk 0:02:09.2]} 1-0

[Event "Live Chess"]
[Site "Chess.com"]
[Date "2024.06.02"]
[Round "-"]
[White "Dhaydon19"]
[Black "GwaryTek"]
[Result "1-0"]
[WhiteElo "2638"]
[BlackElo "1828"]
[TimeControl "300"]
[EndTime "3:56:59 PDT"]
[Termination "Dhaydon19 won on time"]

1. d4 {[%clk 0:04:58.2]} 1... Nf6 {[%clk 0:04:57.8]} 2. Nf3 {[%clk 0:04:54.8]}
2... d5 {[%clk 0:04:56.6]} 3. g3 {[%clk 0:04:54.3]} 3... Bf5 {[%clk 0:04:55]} 4.
Bg2 {[%clk 0:04:53.6]} 4... e6 {[%clk 0:04:54.1]} 5. O-O {[%clk 0:04:52.1]} 5...
h6 {[%clk 0:04:51.6]} 6. c4 {[%clk 0:04:50.3]} 6... c6 {[%clk 0:04:50.7]} 7. Nc3
{[%clk 0:04:48.2]} 7... Nbd7 {[%clk 0:04:49.1]} 8. b3 {[%clk 0:04:47.1]} 8...
Bd6 {[%clk 0:04:47.7]} 9. Bb2 {[%clk 0:04:45]} 9... O-O {[%clk 0:04:46.5]} 10.
Rc1 {[%clk 0:04:42.2]} 10... Qe7 {[%clk 0:04:44.8]} 11. Nh4 {[%clk 0:04:41.1]}
11... Bh7 {[%clk 0:04:43.2]} 12. Nf3 {[%clk 0:04:40.3]} 12... Ba3 {[%clk
0:04:33]} 13. Bxa3 {[%clk 0:04:35.2]} 13... Qxa3 {[%clk 0:04:32.9]} 14. Qd2
{[%clk 0:04:34]} 14... Qd6 {[%clk 0:04:24.3]} 15. Rfd1 {[%clk 0:04:29.1]} 15...
Ne4 {[%clk 0:03:49.1]} 16. Nxe4 {[%clk 0:04:27.5]} 16... Bxe4 {[%clk 0:03:49]}
17. e3 {[%clk 0:04:26.1]} 17... a5 {[%clk 0:03:44.4]} 18. Ne1 {[%clk 0:04:23.9]}
18... Bxg2 {[%clk 0:03:39.5]} 19. Kxg2 {[%clk 0:04:23.3]} 19... Nf6 {[%clk
0:03:17.5]} 20. Nd3 {[%clk 0:04:20.6]} 20... Ne4 {[%clk 0:03:14.8]} 21. Qc2
{[%clk 0:04:19.6]} 21... f6 {[%clk 0:03:06.2]} 22. Nf4 {[%clk 0:04:16.6]} 22...
e5 {[%clk 0:02:45.9]} 23. dxe5 {[%clk 0:04:13.4]} 23... fxe5 {[%clk 0:02:44]}
24. Qxe4 {[%clk 0:04:08.7]} 24... exf4 {[%clk 0:02:38.5]} 25. exf4 {[%clk
0:04:05.9]} 25... Rae8 {[%clk 0:02:27.3]} 26. Qd3 {[%clk 0:04:03.4]} 26... Rd8
{[%clk 0:01:57.7]} 27. cxd5 {[%clk 0:04:00.9]} 27... cxd5 {[%clk 0:01:55.8]} 28.
Rc2 {[%clk 0:03:56.3]} 28... h5 {[%clk 0:01:39.5]} 29. Rcd2 {[%clk 0:03:49.6]}
29... Qc6 {[%clk 0:00:53.9]} 30. Rc2 {[%clk 0:03:35.6]} 30... Qd6 {[%clk
0:00:40.6]} 31. Re2 {[%clk 0:03:33.2]} 31... h4 {[%clk 0:00:37.5]} 32. Re5
{[%clk 0:03:31.2]} 32... d4 {[%clk 0:00:10.1]} 33. Qc4+ {[%clk 0:03:25.6]} 33...
Rf7 {[%clk 0:00:06.5]} 34. Rf5 {[%clk 0:03:20.7]} 34... h3+ {[%clk 0:00:03.7]}
35. Kxh3 {[%clk 0:03:15.2]} 35... Qd7 {[%clk 0:00:02.8]} 36. Qxf7+ {[%clk
0:03:13.2]} 36... Qxf7 {[%clk 0:00:01.2]} 37. Rxf7 {[%clk 0:03:12.7]} 37... Kxf7
{[%clk 0:00:01.1]} 38. Rxd4 {[%clk 0:03:12.2]} 1-0

[Event "Live Chess"]
[Site "Chess.com"]
[Date "2024.06.02"]
[Round "-"]
[White "Eva3337"]
[Black "Andriy_Yaremovych"]
[Result "0-1"]
[WhiteElo "1172"]
[BlackElo "1590"]
[TimeControl "300"]
[EndTime "3:57:03 PDT"]
[Termination "Andriy_Yaremovych won by resignation"]

1. e4 {[%clk 0:04:55]} 1... b6 {[%clk 0:04:58.9]} 2. Nf3 {[%clk 0:04:53.7]} 2...
Bb7 {[%clk 0:04:58.1]} 3. Bd3 {[%clk 0:04:52.5]} 3... Nf6 {[%clk 0:04:57.1]} 4.
Qe2 {[%clk 0:04:49.4]} 4... e5 {[%clk 0:04:55.8]} 5. O-O {[%clk 0:04:48]} 5...
Nc6 {[%clk 0:04:54.6]} 6. c3 {[%clk 0:04:46.7]} 6... Qe7 {[%clk 0:04:53.2]} 7.
Bc2 {[%clk 0:04:45.6]} 7... h6 {[%clk 0:04:52]} 8. Re1 {[%clk 0:04:44.4]} 8...
O-O-O {[%clk 0:04:50.6]} 9. Bd3 {[%clk 0:04:39.9]} 9... g5 {[%clk 0:04:49.2]}
10. Ba6 {[%clk 0:04:38.3]} 10... Bg7 {[%clk 0:04:44.5]} 11. h3 {[%clk
0:04:36.6]} 11... Kb8 {[%clk 0:04:42.9]} 12. Bxb7 {[%clk 0:04:33.3]} 12... Kxb7
{[%clk 0:04:42.8]} 13. d4 {[%clk 0:04:20.3]} 13... d6 {[%clk 0:04:39.8]} 14. d5
{[%clk 0:04:18.1]} 14... Nb8 {[%clk 0:04:37.7]} 15. Qb5 {[%clk 0:04:13.3]} 15...
Nfd7 {[%clk 0:04:35.8]} 16. a4 {[%clk 0:04:04.2]} 16... a6 {[%clk 0:04:34.6]}
17. Qb3 {[%clk 0:03:59.6]} 17... Nc5 {[%clk 0:04:33.3]} 18. Qb4 {[%clk
0:03:56.2]} 18... Nd3 {[%clk 0:04:32.1]} 19. Qb3 {[%clk 0:03:44.3]} 19... Nxe1
{[%clk 0:04:29.3]} 20. a5 {[%clk 0:03:42.2]} 20... Nxf3+ {[%clk 0:04:26.7]} 21.
gxf3 {[%clk 0:03:40.2]} 21... Qf6 {[%clk 0:04:24.5]} 22. Be3 {[%clk 0:03:25.1]}
22... Nd7 {[%clk 0:04:18.7]} 23. Na3 {[%clk 0:03:19.2]} 23... Qxf3 {[%clk
0:04:16.2]} 24. Nc4 {[%clk 0:03:17.5]} 24... b5 {[%clk 0:04:11.4]} 25. Qb4
{[%clk 0:02:52.1]} 25... Qxh3 {[%clk 0:04:00.1]} 26. Nxd6+ {[%clk 0:02:50.2]}
26... cxd6 {[%clk 0:03:58.6]} 27. Qxd6 {[%clk 0:02:48.4]} 27... Bf8 {[%clk
0:03:45.9]} 28. Qb6+ {[%clk 0:02:31.3]} 28... Nxb6 {[%clk 0:03:39.6]} 29. Bxb6
{[%clk 0:02:26.2]} 29... Rc8 {[%clk 0:03:36]} 30. Ra3 {[%clk 0:02:12.8]} 30...
Bxa3 {[%clk 0:03:33.7]} 31. bxa3 {[%clk 0:02:11.3]} 31... Qxc3 {[%clk
0:03:32.6]} 0-1

[Event "Live Chess"]
[Site "Chess.com"]
[Date "2024.06.02"]
[Round "-"]
[White "KyryloPoluliakh"]
[Black "upoe610"]
[Result "0-1"]
[WhiteElo "1517"]
[BlackElo "2132"]
[TimeControl "300"]
[EndTime "3:57:07 PDT"]
[Termination "upoe610 won by checkmate"]

1. c4 {[%clk 0:04:53.3]} 1... c5 {[%clk 0:04:58.7]} 2. Nc3 {[%clk 0:04:52]} 2...
Nc6 {[%clk 0:04:57.9]} 3. g3 {[%clk 0:04:50.9]} 3... g6 {[%clk 0:04:56]} 4. Bg2
{[%clk 0:04:48.6]} 4... Bg7 {[%clk 0:04:55.4]} 5. e3 {[%clk 0:04:46.8]} 5... e5
{[%clk 0:04:46.1]} 6. Nge2 {[%clk 0:04:45.2]} 6... Nge7 {[%clk 0:04:44.5]} 7.
O-O {[%clk 0:04:43.8]} 7... d6 {[%clk 0:04:42.8]} 8. f4 {[%clk 0:04:33]} 8...
Be6 {[%clk 0:04:39.3]} 9. b3 {[%clk 0:04:28.6]} 9... exf4 {[%clk 0:04:32.9]} 10.
Nxf4 {[%clk 0:04:24.7]} 10... O-O {[%clk 0:04:30.1]} 11. Bb2 {[%clk 0:04:15.2]}
11... Nb4 {[%clk 0:04:08.2]} 12. d4 {[%clk 0:04:02.9]} 12... Bf5 {[%clk
0:04:05.2]} 13. Bxb7 {[%clk 0:03:56.8]} 13... Rb8 {[%clk 0:04:03.3]} 14. Be4
{[%clk 0:03:52.6]} 14... cxd4 {[%clk 0:03:55.6]} 15. exd4 {[%clk 0:03:47.2]}
15... Qb6 {[%clk 0:03:49.7]} 16. Nfe2 {[%clk 0:03:39.8]} 16... Bxe4 {[%clk
0:03:44.1]} 17. Nxe4 {[%clk 0:03:37.4]} 17... d5 {[%clk 0:03:44]} 18. Ng5 {[%clk
0:03:21.2]} 18... Nf5 {[%clk 0:03:34.5]} 19. Bc3 {[%clk 0:03:13.9]} 19... Ne3
{[%clk 0:03:31.3]} 20. Qd2 {[%clk 0:03:04]} 20... Nxf1 {[%clk 0:03:29]} 21. Rxf1
{[%clk 0:03:00.7]} 21... dxc4 {[%clk 0:03:27.1]} 22. bxc4 {[%clk 0:02:57.6]}
22... Nc6 {[%clk 0:03:25.7]} 23. c5 {[%clk 0:02:47.2]} 23... Qd8 {[%clk
0:03:21.7]} 24. d5 {[%clk 0:02:38.9]} 24... Ne5 {[%clk 0:03:17.7]} 25. Bxe5
{[%clk 0:02:33]} 25... Bxe5 {[%clk 0:03:16]} 26. d6 {[%clk 0:02:28.2]} 26... Rb2
{[%clk 0:03:11.2]} 27. Qd3 {[%clk 0:02:23.7]} 27... Qxg5 {[%clk 0:03:08]} 28. c6
{[%clk 0:02:11.5]} 28... Rd2 {[%clk 0:03:05.8]} 29. Qb3 {[%clk 0:01:57.2]} 29...
Rxe2 {[%clk 0:03:03.2]} 30. c7 {[%clk 0:01:49.3]} 30... Bxd6 {[%clk 0:02:49.6]}
31. Qc4 {[%clk 0:01:47.3]} 31... Qc5+ {[%clk 0:02:47.1]} 32. Qxc5 {[%clk
0:01:42.7]} 32... Bxc5+ {[%clk 0:02:47]} 33. Kh1 {[%clk 0:01:40.1]} 33... Rc8
{[%clk 0:02:42.9]} 34. Re1 {[%clk 0:01:34.7]} 34... Rxe1+ {[%clk 0:02:40.3]} 35.
Kg2 {[%clk 0:01:34.3]} 35... Re2+ {[%clk 0:02:39.6]} 36. Kh3 {[%clk 0:01:33.3]}
36... h5 {[%clk 0:02:37.9]} 37. a3 {[%clk 0:01:33]} 37... Bg1 {[%clk 0:02:35.4]}
38. Kh4 {[%clk 0:01:29.5]} 38... f6 {[%clk 0:02:34.1]} 39. h3 {[%clk 0:01:27.7]}
39... Kg7 {[%clk 0:02:31.3]} 40. a4 {[%clk 0:01:25.8]} 40... Kh6 {[%clk
0:02:29.9]} 41. g4 {[%clk 0:01:21.9]} 41... Bf2# {[%clk 0:02:28.5]} 0-1

[Event "Live Chess"]
[Site "Chess.com"]
[Date "2024.06.02"]
[Round "-"]
[White "Victor_Bondar"]
[Black "Ferrarifan27"]
[Result "0-1"]
[WhiteElo "1460"]
[BlackElo "2148"]
[TimeControl "300"]
[EndTime "3:57:07 PDT"]
[Termination "Ferrarifan27 won by resignation"]

1. e4 {[%clk 0:04:58.5]} 1... e5 {[%clk 0:04:58.6]} 2. Nf3 {[%clk 0:04:56.8]}
2... Nc6 {[%clk 0:04:56.6]} 3. d4 {[%clk 0:04:53.9]} 3... exd4 {[%clk
0:04:55.3]} 4. Nxd4 {[%clk 0:04:52.7]} 4... Nf6 {[%clk 0:04:50.6]} 5. Nxc6
{[%clk 0:04:47.5]} 5... bxc6 {[%clk 0:04:49.2]} 6. Bd3 {[%clk 0:04:46.4]} 6...
d5 {[%clk 0:04:44]} 7. Bg5 {[%clk 0:04:36.4]} 7... dxe4 {[%clk 0:04:35.6]} 8.
Bxf6 {[%clk 0:04:19.7]} 8... Qxf6 {[%clk 0:04:33.1]} 9. Bxe4 {[%clk 0:04:09.3]}
9... Bd7 {[%clk 0:04:29.8]} 10. Nc3 {[%clk 0:04:02.4]} 10... Bb4 {[%clk
0:04:27.3]} 11. O-O {[%clk 0:04:00.9]} 11... O-O {[%clk 0:04:23.6]} 12. Qxd7
{[%clk 0:03:51.8]} 12... Rfe8 {[%clk 0:04:10.2]} 13. Bxh7+ {[%clk 0:03:45.1]}
13... Kxh7 {[%clk 0:04:06.5]} 14. Qxc7 {[%clk 0:03:41.7]} 14... Bxc3 {[%clk
0:04:02.2]} 15. bxc3 {[%clk 0:03:39.8]} 15... Qxc3 {[%clk 0:04:02.1]} 16. h3
{[%clk 0:03:37.1]} 16... f6 {[%clk 0:03:54.2]} 17. Rac1 {[%clk 0:03:23.8]} 17...
a5 {[%clk 0:03:52.5]} 18. Qf4 {[%clk 0:03:18.5]} 18... Re2 {[%clk 0:03:43.1]}
19. Qf5+ {[%clk 0:03:04]} 19... Kg8 {[%clk 0:03:41]} 20. Rfe1 {[%clk 0:03:03.1]}
20... Rxe1+ {[%clk 0:03:39.4]} 21. Rxe1 {[%clk 0:03:01.3]} 21... Qxe1+ {[%clk
0:03:38.5]} 22. Kh2 {[%clk 0:03:00.2]} 22... Qe5+ {[%clk 0:03:37.5]} 23. Qxe5
{[%clk 0:02:58]} 23... fxe5 {[%clk 0:03:37.4]} 24. Kg3 {[%clk 0:02:56.5]} 24...
Rd8 {[%clk 0:03:35.2]} 0-1